fUST/lending_fUST_20240809
["ID","MTS","AMOUNT","RATE_DAILY","PERIOD"]
[334479746,1723153845444,-603.25,0.00027397,7]
[334479747,1723153845454,-500.0,0.00027397,7]
[334479748,1723153845463,-170.394775,0.00027397,7]
[334479749,1723153845472,-170.394775,0.00027397,7]
[334479750,1723153845481,-500.0,0.00027397,7]
[334479751,1723153845490,-500.0,0.00027397,7]
[334479752,1723153845499,-170.394775,0.00027397,7]
[334479753,1723153845509,-170.394775,0.00027397,7]
[334479754,1723153845519,-560.09808393,0.00027397,7]
[334479755,1723153845528,-151.0,0.00027397,7]
[334479756,1723153845538,-151.0,0.00027397,7]
[334479757,1723153845547,-500.0,0.00027397,7]
[334479758,1723153845556,-500.0,0.00027397,7]
[334479759,1723153845565,-696.82,0.00027397,7]
[334479760,1723153845575,-151.0,0.00027397,7]
[334479761,1723153845586,-151.0,0.00027397,7]
[334479762,1723153845595,-151.0,0.00027397,7]
[334479763,1723153845605,-209.522515,0.00027397,7]
[334479764,1723153845616,-500.0,0.00027397,7]
[334479765,1723153845627,-500.0,0.00027397,7]
[334479766,1723153845637,-501.04256428,0.00027397,7]
[334479767,1723153845647,-500.0,0.00027397,7]
[334479768,1723153845656,-772.34,0.00027397,7]
[334479769,1723153845665,-562.299882,0.00027397,7]
[334479770,1723153845676,-500.0,0.00027397,7]
[334479771,1723153845686,-507.09,0.00027397,7]
[334479772,1723153845697,-500.0,0.00027397,7]
[334479773,1723153845709,-798.46,0.00027397,7]
[334479774,1723153845719,-500.0,0.00027397,7]
[334479775,1723153845728,-500.0,0.00027397,7]
[334479776,1723153845738,-500.0,0.00027397,7]
[334479777,1723153845748,-500.0,0.00027397,7]
[334479778,1723153845757,-2212.83,0.00027397,7]
[334479779,1723153845767,-173.109334,0.00027397,2]
[334479780,1723153845775,-500.0,0.00027397,7]
[334479781,1723153845784,-500.0,0.00027397,7]
[334479782,1723153845793,-200.0,0.00027397,7]
[334479783,1723153845803,-500.0,0.00027397,7]
[334479784,1723153845812,-500.0,0.00027397,7]
[334479785,1723153845821,-500.0,0.00027397,7]
[334479786,1723153845832,-1073.43,0.00027397,7]
[334479787,1723153845840,-500.0,0.00027397,7]
[334479788,1723153845850,-728.83,0.00027397,7]
[334479789,1723153845859,-500.0,0.00027397,7]
[334479790,1723153845868,-500.0,0.00027397,7]
[334479791,1723153845877,-561.69,0.00027397,7]
[334479792,1723153845885,-500.0,0.00027397,7]
[334479793,1723153845894,-1464.22,0.00027397,7]
[334479794,1723153845903,-500.0,0.00027397,7]
[334479795,1723153845914,-500.0,0.00027397,7]
[334479796,1723153845924,-500.0,0.00027397,7]
[334479797,1723153845934,-500.0,0.00027397,7]
[334479798,1723153845944,-500.0,0.00027397,7]
[334479799,1723153845956,-500.0,0.00027397,7]
[334479800,1723153845966,-500.0,0.00027397,7]
[334479801,1723153845976,-262.589626,0.00027397,7]
[334479802,1723153845985,-262.589626,0.00027397,7]
[334479803,1723153845995,-262.589626,0.00027397,7]
[334479804,1723153846005,-151.0,0.00027397,7]
[334479805,1723153846014,-500.0,0.00027397,7]
[334479806,1723153846024,-262.589626,0.00027397,7]
[334479807,1723153846035,-611.93,0.00027397,7]
[334479808,1723153846045,-500.0,0.00027397,7]
[334479809,1723153846056,-500.0,0.00027397,7]
[334479810,1723153846066,-500.0,0.00027397,7]
[334479811,1723153846076,-500.0,0.00027397,7]
[334479812,1723153846088,-500.0,0.00027397,7]
[334479813,1723153846097,-151.0,0.00027397,7]
[334479814,1723153846107,-500.0,0.00027397,7]
[334479815,1723153846116,-151.0,0.00027397,7]
[334479816,1723153846125,-500.0,0.00027397,7]
[334479817,1723153846137,-1954.06,0.00027397,7]
[334479818,1723153846147,-1406.56,0.00027397,7]
[334479819,1723153846159,-500.0,0.00027397,7]
[334479820,1723153846170,-500.0,0.00027397,7]
[334479821,1723153846179,-509.62,0.00027397,7]
[334479822,1723153846189,-500.0,0.00027397,7]
[334479823,1723153846199,-500.0,0.00027397,7]
[334479824,1723153846209,-576.88,0.00027397,7]
[334479825,1723153846219,-172.19028353,0.00027397,7]
[334479826,1723153846229,-151.0,0.00027397,7]
[334479827,1723153846240,-151.0,0.00027397,7]
[334479828,1723153846252,-1533.48,0.00027397,7]
[334479829,1723153846262,-552.76,0.00027397,7]
[334479830,1723153846271,-151.0,0.00027397,7]
[334479831,1723153846281,-500.0,0.00027397,7]
[334479832,1723153846291,-296.42748,0.00027397,7]
[334479833,1723153846301,-752.52351692,0.00027397,7]
[334479888,1723153847503,-294.4971025,0.00025671,2]
[334479889,1723153847512,-11111.34,0.0002729,3]
[334479890,1723153847522,-388.143646,0.000273,7]
[334479891,1723153847531,-856.92648308,0.00027397,7]
[334479892,1723153847541,-675.98,0.00027397,7]
[334479893,1723153847746,-500.0,0.00027397,7]
[334479894,1723153847756,-151.0,0.00027397,7]
[334479895,1723153847766,-500.0,0.00027397,7]
[334479896,1723153847775,-525.20921789,0.00027397,7]
[334479897,1723153847784,-614.96149429,0.00027397,7]
[334479898,1723153847793,-500.0,0.00027397,7]
[334479899,1723153847803,-500.0,0.00027397,7]
[334479900,1723153847813,-151.0,0.00027397,7]
[334479901,1723153847822,-500.0,0.00027397,7]
[334479902,1723153847835,-500.0,0.00027397,7]
[334479903,1723153847844,-500.0,0.00027397,7]
[334479904,1723153847853,-500.0,0.00027397,7]
[334479905,1723153847862,-500.0,0.00027397,7]
[334479906,1723153847872,-500.0,0.00027397,7]
[334479907,1723153847881,-642.34,0.00027397,7]
[334479908,1723153847890,-500.0,0.00027397,7]
[334479909,1723153847899,-151.0,0.00027397,7]
[334479910,1723153847908,-151.0,0.00027397,7]
[334479911,1723153847917,-500.0,0.00027397,7]
[334479912,1723153847926,-500.0,0.00027397,7]
[334479913,1723153847935,-725.04,0.00027397,7]
[334479914,1723153847944,-500.0,0.00027397,7]
[334479915,1723153847953,-8678.22,0.00027397,7]
[334479916,1723153847962,-151.0,0.00027397,7]
[334479917,1723153847972,-157.28187,0.00027397,7]
[334479918,1723153847982,-511.24,0.00027397,7]
[334479919,1723153847991,-170.390512,0.00027397,7]
[334479920,1723153848000,-170.390512,0.00027397,7]
[334479921,1723153848010,-1402.03,0.00027397,7]
[334479922,1723153848019,-500.0,0.00027397,7]
[334479923,1723153848029,-500.0,0.00027397,7]
[334479924,1723153848039,-170.390512,0.00027397,7]
[334479925,1723153848048,-170.390512,0.00027397,7]
[334479926,1723153848057,-500.0,0.00027397,7]
[334479927,1723153848067,-526.33,0.00027397,7]
[334479928,1723153848076,-500.0,0.00027397,7]
[334479929,1723153848088,-500.0,0.00027397,7]
[334479930,1723153848097,-2682.46,0.00027397,7]
[334479931,1723153848107,-500.0,0.00027397,7]
[334479932,1723153848117,-542.88,0.00027397,7]
[334479933,1723153848127,-2912.71,0.00027397,7]
[334479934,1723153848138,-500.0,0.00027397,7]
[334479935,1723153848148,-500.0,0.00027397,7]
[334479936,1723153848159,-500.0,0.00027397,7]
[334479937,1723153848170,-500.0,0.00027397,7]
[334479938,1723153848179,-500.0,0.00027397,7]
[334479939,1723153848188,-633.2,0.00027397,7]
[334479940,1723153848199,-500.0,0.00027397,7]
[334479941,1723153848208,-1920.47,0.00027397,7]
[334479942,1723153848218,-500.0,0.00027397,7]
[334479943,1723153848227,-1431.51,0.00027397,7]
[334479944,1723153848238,-294.211341,0.00027397,7]
[334479945,1723153848251,-500.0,0.00027397,7]
[334479946,1723153848260,-294.211341,0.00027397,7]
[334479947,1723153848270,-500.0,0.00027397,7]
[334479948,1723153848279,-500.0,0.00027397,7]
[334479949,1723153848288,-294.211341,0.00027397,7]
[334479950,1723153848298,-294.211341,0.00027397,7]
[334479951,1723153848308,-500.0,0.00027397,7]
[334479952,1723153848317,-500.0,0.00027397,7]
[334479953,1723153848327,-617.72626832,0.00027397,7]
[334479954,1723153848340,-500.0,0.00027397,7]
[334479955,1723153848350,-500.0,0.00027397,7]
[334479956,1723153848359,-500.0,0.00027397,7]
[334479957,1723153848369,-912.09,0.00027397,7]
[334479958,1723153848378,-508.08071063,0.00027397,7]
[334479959,1723153848388,-507.05431676,0.00027397,7]
[334479960,1723153848398,-151.532427,0.00027397,7]
[334479961,1723153848408,-500.0,0.00027397,7]
[334479962,1723153848418,-5379.88,0.00027397,7]
[334479963,1723153848428,-500.0,0.00027397,7]
[334479964,1723153848438,-500.0,0.00027397,7]
[334479965,1723153848447,-820.9,0.00027397,7]
[334479966,1723153848457,-500.0,0.00027397,7]
[334479967,1723153848468,-151.0,0.00027397,7]
[334479968,1723153848482,-151.0,0.00027397,7]
[334479969,1723153848493,-547.86203005,0.00027397,7]
[334479970,1723153848503,-500.0,0.00027397,7]
[334479971,1723153848513,-828.94,0.00027397,7]
[334479972,1723153848522,-500.0,0.00027397,7]
[334479973,1723153848534,-160.27876,0.00027397,7]
[334479974,1723153848544,-500.0,0.00027397,7]
[334479975,1723153848554,-500.0,0.00027397,7]
[334479976,1723153848564,-787.47,0.00027397,7]
[334479977,1723153848574,-249.093938,0.00027397,7]
[334479978,1723153848588,-500.0,0.00027397,7]
[334479979,1723153848599,-5045.95,0.00027397,7]
[334479980,1723153848608,-945.78,0.00027397,7]
[334479981,1723153848618,-500.0,0.00027397,7]
[334479982,1723153848628,-500.0,0.00027397,7]
[334479983,1723153848638,-500.0,0.00027397,7]
[334479984,1723153848648,-1498.83,0.00027397,7]
[334479985,1723153848657,-673.11,0.00027397,7]
[334479986,1723153848667,-500.0,0.00027397,7]
[334479987,1723153848677,-1948.38,0.00027397,7]
[334479988,1723153848687,-500.0,0.00027397,7]
[334479989,1723153848696,-500.0,0.00027397,7]
[334479990,1723153848706,-1011.97,0.00027397,7]
[334479991,1723153848716,-500.0,0.00027397,7]
[334479992,1723153848725,-500.0,0.00027397,7]
[334479993,1723153848734,-500.0,0.00027397,7]
[334479994,1723153848744,-253.61457286,0.00027397,7]
[334479995,1723153848755,-500.0,0.00027397,7]
[334479996,1723153848767,-151.0,0.00027397,7]
[334479997,1723153848778,-151.0,0.00027397,7]
[334479998,1723153848788,-500.0,0.00027397,7]
[334479999,1723153848797,-500.0,0.00027397,7]
[334480000,1723153848807,-500.0,0.00027397,7]
[334480001,1723153848817,-876.32,0.00027397,7]
[334480002,1723153848827,-1283.93,0.00027397,7]
[334480003,1723153848837,-625.17776605,0.00027397,7]
[334480004,1723153848846,-500.0,0.00027397,7]
[334480005,1723153848856,-242.314043,0.00027397,7]
[334480006,1723153848865,-242.314043,0.00027397,7]
[334480007,1723153848874,-500.0,0.00027397,7]
[334480008,1723153848884,-502.48752705,0.00027397,7]
[334480009,1723153848894,-242.314043,0.00027397,7]
[334480010,1723153848903,-500.0,0.00027397,7]
[334480011,1723153848912,-242.314043,0.00027397,7]
[334480012,1723153848922,-157.80579925,0.00027397,7]
[334480013,1723153848932,-1015.71,0.00027397,7]
[334480014,1723153848941,-645.83738949,0.00027397,7]
[334480015,1723153848951,-812.05,0.00027397,7]
[334480016,1723153848961,-650.37,0.00027397,7]
[334480017,1723153848971,-616.87,0.00027397,7]
[334480018,1723153848980,-500.0,0.00027397,7]
[334480019,1723153848991,-513.62643191,0.00027397,7]
[334480020,1723153849001,-500.0,0.00027397,7]
[334480021,1723153849011,-500.0,0.00027397,7]
[334480022,1723153849020,-508.99,0.00027397,7]
[334480023,1723153849030,-500.0,0.00027397,7]
[334480024,1723153849039,-663.78,0.00027397,7]
[334480025,1723153849049,-500.0,0.00027397,7]
[334480026,1723153849058,-3945.14,0.00027397,7]
[334480027,1723153849068,-151.0,0.00027397,7]
[334480028,1723153849078,-3758.42,0.00027397,7]
[334480029,1723153849089,-500.0,0.00027397,7]
[334480030,1723153849098,-500.0,0.00027397,7]
[334480031,1723153849108,-500.0,0.00027397,7]
[334480032,1723153849117,-500.0,0.00027397,7]
[334480033,1723153849127,-500.0,0.00027397,7]
[334480034,1723153849137,-500.0,0.00027397,7]
[334480035,1723153849148,-500.0,0.00027397,7]
[334480036,1723153849159,-1101.4,0.00027397,7]
[334480037,1723153849171,-500.0,0.00027397,7]
[334480038,1723153849180,-648.86,0.00027397,7]
[334480039,1723153849190,-1786.42,0.00027397,7]
[334480040,1723153849200,-500.0,0.00027397,7]
[334480041,1723153849211,-500.0,0.00027397,7]
[334480042,1723153849220,-500.0,0.00027397,7]
[334480043,1723153849230,-388.143646,0.00027397,7]
[334480044,1723153849241,-500.0,0.00027397,7]
[334480045,1723153849251,-388.143646,0.00027397,7]
[334480046,1723153849261,-1000.0,0.00027398,2]
[334480047,1723153849271,-1000.0,0.00027409,2]
[334480048,1723153849281,-1000.0,0.00027415,2]
[334480049,1723153849291,-150.0,0.00027526,2]
[334480050,1723153849302,-620.00209619,0.00027568,2]
[334480051,1723153849313,-1000.0,0.0002757,2]
[334480052,1723153849322,-500.0,0.00027586,2]
[334480053,1723153849333,-300.0,0.000276,13]
[334480054,1723153849344,-250.0,0.00027616,2]
[334480055,1723153849354,-150.0,0.00027617,2]
[334480056,1723153849364,-150.01,0.00027654,2]
[334480057,1723153849374,-2993.00758584,0.00027654,2]
[334480058,1723153849383,-41097.66688842,0.00027671,11]
[334480059,1723153849394,-246.29936796,0.00027671,7]
[334480060,1723153849403,-500.0,0.00027671,7]
[334480061,1723153849414,-500.0,0.00027671,7]
[334480062,1723153849423,-500.0,0.00027671,7]
[334480063,1723153849433,-500.0,0.00027671,7]
[334480064,1723153849443,-500.0,0.00027671,7]
[334480065,1723153849453,-500.0,0.00027671,7]
[334480066,1723153849462,-500.0,0.00027671,7]
[334480067,1723153849473,-500.0,0.00027671,7]
[334480068,1723153849482,-500.0,0.00027671,7]
[334480069,1723153849492,-391.25255873,0.00027671,7]
[334480070,1723153849502,-500.0,0.00027671,7]
[334480071,1723153849512,-838.4,0.00027671,7]
[334480072,1723153849521,-500.0,0.00027671,7]
[334480073,1723153849531,-500.0,0.00027671,7]
[334480074,1723153849540,-500.0,0.00027671,7]
[334480075,1723153849550,-500.0,0.00027671,7]
[334480076,1723153849561,-500.0,0.00027671,7]
[334480077,1723153849572,-563.03,0.00027671,7]
[334480078,1723153849583,-500.0,0.00027671,7]
[334480079,1723153849593,-500.0,0.00027671,7]
[334480080,1723153849603,-500.0,0.00027671,7]
[334480081,1723153849613,-406.89113758,0.00027671,7]
[334480082,1723153849623,-500.0,0.00027671,7]
[334480083,1723153849633,-500.0,0.00027671,7]
[334480084,1723153849642,-445.82598463,0.00027671,7]
[334480085,1723153849654,-739.49,0.00027671,7]
[334480086,1723153849664,-606.63,0.00027671,7]
[334480087,1723153849674,-500.0,0.00027671,7]
[334480088,1723153849683,-500.0,0.00027671,7]
[334480089,1723153849693,-500.0,0.00027671,7]
[334480090,1723153849702,-500.0,0.00027671,2]
[334480091,1723153849712,-500.0,0.00027671,7]
[334480092,1723153849722,-500.0,0.00027671,7]
[334480093,1723153849732,-151.0,0.00027671,7]
[334480094,1723153849742,-500.0,0.00027671,7]
[334480095,1723153849751,-500.0,0.00027671,7]
[334480096,1723153849761,-1471.08,0.00027671,7]
[334480097,1723153849770,-500.0,0.00027671,7]
[334480098,1723153849780,-500.0,0.00027671,7]
[334480099,1723153849789,-500.0,0.00027671,7]
[334480100,1723153849798,-500.0,0.00027671,7]
[334480101,1723153849807,-588.8,0.00027671,7]
[334480102,1723153849817,-500.0,0.00027671,7]
[334480103,1723153849826,-500.0,0.00027671,7]
[334480104,1723153849843,-601.92671851,0.00027671,7]
[334480105,1723153849859,-716.21,0.00027671,7]
[334480106,1723153849871,-500.0,0.00027671,7]
[334480107,1723153849880,-500.0,0.00027671,7]
[334480108,1723153849891,-585.79,0.00027671,7]
[334480109,1723153849900,-500.0,0.00027671,7]
[334480110,1723153849910,-1073.49,0.00027671,7]
[334480111,1723153849921,-246.75961681,0.00027671,7]
[334480112,1723153849931,-500.0,0.00027671,7]
[334480113,1723153849941,-500.0,0.00027671,7]
[334480114,1723153849950,-500.0,0.00027671,7]
[334480115,1723153849960,-500.0,0.00027671,7]
[334480116,1723153849970,-500.0,0.00027671,7]
[334480117,1723153849980,-500.0,0.00027671,7]
[334480118,1723153849991,-500.0,0.00027671,7]
[334480119,1723153850002,-466.48734927,0.00027671,7]
[334480120,1723153850013,-500.0,0.00027671,7]
[334480121,1723153850025,-500.0,0.00027671,2]
[334480122,1723153850037,-500.0,0.00027671,7]
[334480123,1723153850048,-242.45375275,0.00027671,7]
[334480124,1723153850059,-500.0,0.00027671,7]
[334480125,1723153850070,-500.0,0.00027671,7]
[334480126,1723153850079,-500.0,0.00027671,7]
[334480127,1723153850091,-510.22,0.00027671,7]
[334480128,1723153850100,-500.0,0.00027671,7]
[334480129,1723153850110,-500.0,0.00027671,7]
[334480130,1723153850120,-336.51366331,0.00027671,7]
[334480131,1723153850131,-500.0,0.00027671,7]
[334480132,1723153850141,-500.0,0.00027671,7]
[334480133,1723153850151,-151.0,0.00027671,7]
[334480134,1723153850162,-500.0,0.00027671,7]
[334480135,1723153850175,-500.0,0.00027671,7]
[334480136,1723153850185,-620.93,0.00027671,7]
[334480137,1723153850195,-500.0,0.00027671,7]
[334480138,1723153850206,-216.2,0.00027671,7]
[334480139,1723153850216,-638.46,0.00027671,7]
[334480140,1723153850226,-500.0,0.00027671,7]
[334480141,1723153850236,-500.0,0.00027671,7]
[334480142,1723153850246,-710.64,0.00027671,7]
[334480143,1723153850258,-500.0,0.00027671,7]
[334480144,1723153850268,-592.15,0.00027671,7]
[334480145,1723153850278,-594.01,0.00027671,7]
[334480146,1723153850291,-500.0,0.00027671,7]
[334480147,1723153850303,-500.0,0.00027671,7]
[334480148,1723153850313,-500.0,0.00027671,7]
[334480149,1723153850325,-253.39356,0.00027671,2]
[334480150,1723153850337,-500.0,0.00027671,7]
[334480151,1723153850349,-500.0,0.00027671,7]
[334480152,1723153850359,-500.0,0.00027671,7]
[334480153,1723153850370,-151.0,0.00027671,7]
[334480154,1723153850380,-976.01,0.00027671,7]
[334480155,1723153850390,-833.58,0.00027671,7]
[334480156,1723153850400,-464.311488,0.00027671,7]
[334480157,1723153850410,-1059.42,0.00027671,7]
[334480158,1723153850420,-500.0,0.00027671,7]
[334480159,1723153850429,-500.0,0.00027671,7]
[334480160,1723153850442,-500.0,0.00027671,7]
[334480161,1723153850453,-500.0,0.00027671,7]
[334480162,1723153850464,-151.0,0.00027671,7]
[334480163,1723153850474,-500.0,0.00027671,7]
[334480164,1723153850484,-500.0,0.00027671,7]
[334480165,1723153850494,-500.0,0.00027671,7]
[334480166,1723153850503,-500.0,0.00027671,7]
[334480167,1723153850513,-500.0,0.00027671,7]
[334480168,1723153850523,-500.0,0.00027671,7]
[334480169,1723153850533,-500.0,0.00027671,7]
[334480170,1723153850543,-500.0,0.00027671,7]
[334480171,1723153850553,-500.0,0.00027671,7]
[334480172,1723153850564,-500.0,0.00027671,7]
[334480173,1723153850574,-510.05,0.00027671,7]
[334480174,1723153850586,-500.0,0.00027671,7]
[334480175,1723153850597,-933.44,0.00027671,7]
[334480176,1723153850606,-500.0,0.00027671,7]
[334480177,1723153850616,-500.0,0.00027671,7]
[334480178,1723153850625,-500.0,0.00027671,7]
[334480179,1723153850635,-500.0,0.00027671,7]
[334480180,1723153850645,-726.54,0.00027671,7]
[334480181,1723153850654,-500.0,0.00027671,7]
[334480182,1723153850664,-500.0,0.00027671,7]
[334480183,1723153850673,-500.0,0.00027671,7]
[334480184,1723153850683,-500.0,0.00027671,7]
[334480185,1723153850692,-500.0,0.00027671,7]
[334480186,1723153850702,-500.0,0.00027671,7]
[334480187,1723153850713,-151.0,0.00027671,7]
[334480188,1723153850723,-151.0,0.00027671,7]
[334480189,1723153850733,-500.0,0.00027671,7]
[334480190,1723153850742,-757.23,0.00027671,7]
[334480191,1723153850752,-611.67613994,0.00027671,7]
[334480192,1723153850762,-1164.43,0.00027671,7]
[334480193,1723153850771,-500.0,0.00027671,7]
[334480194,1723153850781,-500.0,0.00027671,7]
[334480195,1723153850790,-1295.5,0.00027671,7]
[334480196,1723153850801,-612.36,0.00027671,7]
[334480197,1723153850810,-899.03,0.00027671,7]
[334480198,1723153850820,-500.0,0.00027671,7]
[334480199,1723153850830,-1017.48,0.00027671,7]
[334480200,1723153850844,-500.0,0.00027671,7]
[334480201,1723153850853,-500.0,0.00027671,7]
[334480202,1723153850863,-500.0,0.00027671,7]
[334480203,1723153850872,-593.4,0.00027671,7]
[334480204,1723153850882,-500.0,0.00027671,7]
[334480205,1723153850891,-500.0,0.00027671,7]
[334480206,1723153850900,-583.28,0.00027671,7]
[334480207,1723153850909,-500.0,0.00027671,7]
[334480208,1723153850919,-500.0,0.00027671,7]
[334480209,1723153850929,-500.0,0.00027671,7]
[334480210,1723153850938,-1271.17,0.00027671,7]
[334480211,1723153850948,-500.0,0.00027671,7]
[334480212,1723153850958,-500.0,0.00027671,7]
[334480213,1723153850969,-500.0,0.00027671,7]
[334480214,1723153850978,-734.09,0.00027671,7]
[334480215,1723153850989,-500.0,0.00027671,7]
[334480216,1723153850998,-500.0,0.00027671,7]
[334480217,1723153851008,-443.2,0.00027671,7]
[334480218,1723153851018,-170.394775,0.00027671,7]
[334480219,1723153851030,-500.0,0.00027671,7]
[334480220,1723153851041,-170.394775,0.00027671,7]
[334480221,1723153851052,-500.0,0.00027671,7]
[334480222,1723153851062,-500.0,0.00027671,7]
[334480223,1723153851072,-151.0,0.00027671,7]
[334480224,1723153851082,-500.0,0.00027671,7]
[334480225,1723153851092,-500.0,0.00027671,7]
[334480226,1723153851101,-500.0,0.00027671,7]
[334480227,1723153851111,-772.34,0.00027671,7]
[334480228,1723153851120,-500.0,0.00027671,7]
[334480229,1723153851132,-507.09,0.00027671,7]
[334480230,1723153851142,-500.0,0.00027671,7]
[334480231,1723153851152,-798.46,0.00027671,7]
[334480232,1723153851165,-513.08,0.00027671,7]
[334480233,1723153851174,-500.0,0.00027671,7]
[334480234,1723153851183,-500.0,0.00027671,7]
[334480235,1723153851193,-2212.83,0.00027671,7]
[334480236,1723153851203,-500.0,0.00027671,7]
[334480237,1723153851213,-218.8,0.00027671,7]
[334480238,1723153851223,-500.0,0.00027671,7]
[334480239,1723153851232,-500.0,0.00027671,7]
[334480240,1723153851241,-500.0,0.00027671,7]
[334480241,1723153851252,-1073.43,0.00027671,7]
[334480242,1723153851261,-500.0,0.00027671,7]
[334480243,1723153851270,-728.83,0.00027671,7]
[334480244,1723153851280,-506.68391852,0.00027671,7]
[334480245,1723153851292,-500.0,0.00027671,7]
[334480246,1723153851302,-1464.22,0.00027671,7]
[334480247,1723153851312,-500.0,0.00027671,7]
[334480248,1723153851321,-461.10856277,0.00027671,7]
[334480249,1723153851332,-300.33652714,0.00027671,7]
[334480250,1723153851343,-500.0,0.00027671,7]
[334480251,1723153851355,-262.589626,0.00027671,7]
[334480252,1723153851365,-500.0,0.00027671,7]
[334480253,1723153851375,-262.589626,0.00027671,7]
[334480254,1723153851384,-500.0,0.00027671,7]
[334480255,1723153851394,-500.0,0.00027671,7]
[334480256,1723153851404,-500.0,0.00027671,7]
[334480257,1723153851413,-206.193921,0.00027671,7]
[334480258,1723153851423,-358.90984644,0.00027671,7]
[334480259,1723153851432,-603.19832909,0.00027671,7]
[334480260,1723153851441,-1954.06,0.00027671,7]
[334480261,1723153851452,-1406.56,0.00027671,7]
[334480262,1723153851629,-500.0,0.00027671,7]
[334480263,1723153851640,-509.62,0.00027671,7]
[334480264,1723153851649,-500.0,0.00027671,7]
[334480265,1723153851659,-576.88,0.00027671,7]
[334480266,1723153851668,-151.0,0.00027671,7]
[334480267,1723153851678,-1533.48,0.00027671,7]
[334480268,1723153851687,-552.76,0.00027671,7]
[334480269,1723153851696,-1609.45,0.00027671,7]
[334480270,1723153851706,-675.98,0.00027671,7]
[334480271,1723153851715,-500.0,0.00027671,7]
[334480272,1723153851724,-556.09,0.00027671,7]
[334480273,1723153851734,-500.0,0.00027671,7]
[334480274,1723153851743,-500.0,0.00027671,7]
[334480275,1723153851753,-500.0,0.00027671,7]
[334480276,1723153851762,-500.0,0.00027671,7]
[334480277,1723153851771,-373.64051077,0.00027671,7]
[334480278,1723153851781,-500.0,0.00027671,7]
[334480279,1723153851790,-642.34,0.00027671,7]
[334480280,1723153851800,-151.0,0.00027671,7]
[334480281,1723153851809,-500.0,0.00027671,7]
[334480282,1723153851819,-725.04,0.00027671,7]
[334480283,1723153851828,-579.83,0.00027671,7]
[334480284,1723153851839,-8678.22,0.00027671,7]
[334480285,1723153851849,-511.24,0.00027671,7]
[334480286,1723153851858,-170.390512,0.00027671,7]
[334480287,1723153851867,-1402.03,0.00027671,7]
[334480288,1723153851876,-170.390512,0.00027671,7]
[334480289,1723153851885,-526.33,0.00027671,7]
[334480290,1723153851894,-500.0,0.00027671,7]
[334480291,1723153851905,-500.0,0.00027671,7]
[334480292,1723153851914,-2682.46,0.00027671,7]
[334480293,1723153851923,-2912.71,0.00027671,7]
[334480294,1723153851934,-500.0,0.00027671,7]
[334480295,1723153851946,-500.0,0.00027671,7]
[334480296,1723153851957,-152.75957297,0.00027671,7]
[334480297,1723153851966,-500.0,0.00027671,7]
[334480298,1723153851976,-633.2,0.00027671,7]
[334480299,1723153851985,-500.0,0.00027671,7]